bitfinex-derivatives/quotes_SOLF0:USTF0_20260114
["timestamp","ask_amount","ask_price","bid_price","bid_amount"]
[1768431602445,3.27142878,146.33,146.23,3.21547598]
[1768431602937,3.27142878,146.31,146.23,3.21547598]
[1768431603137,80.8,146.3,146.23,3.21547598]
[1768431603641,80.8,146.3,146.25,0.0495219]
[1768431603642,0.04604031,146.28,146.25,0.0495219]
[1768431604742,0.04604031,146.28,146.21,3.21547598]
[1768431604938,9.42392878,146.29,146.21,3.21547598]
[1768431605734,9.42292878,146.31,146.24,3.26495044]
[1768431605940,9.42292878,146.31,146.24,3.21547598]
[1768431606137,6.1515,146.31,146.24,3.21547598]
[1768431606851,0.04753057,146.29,146.26,0.04698828]
[1768431612453,6.19973057,146.29,146.24,3.21547598]
[1768431612657,6.19973057,146.29,146.22,3.21547598]
[1768431613450,2.09540001,146.28,146.22,3.21547598]
[1768431613651,6.1526,146.28,146.24,0.05236558]
[1768431613957,8.24800001,146.28,146.24,0.05236558]
[1768431623465,8.24800001,146.28,146.22,3.21547598]
[1768431623665,0.62489795,146.23,146.11,176.5968]
[1768431623964,2.09540001,146.22,146.12,2.09540001]
[1768431624667,0.62489795,146.23,146.16,0.04906622]
[1768431624869,8.25060001,146.22,146.16,0.04906622]
[1768431625368,2.09540001,146.22,146.16,0.04906622]
[1768431625562,2.09540001,146.22,146.16,3.28021326]
[1768431626460,0.04681908,146.2,146.16,3.28021326]
[1768431627467,6.77959795,146.23,146.16,3.28021326]
[1768431627468,8.87499796,146.23,146.16,3.28021326]
[1768431628268,0.62489795,146.23,146.18,3.23114704]
[1768431628573,6.1541,146.25,146.19,0.04559671]
[1768431628867,8.87439796,146.25,146.19,3.27674375]
[1768431629966,8.24950001,146.25,146.19,3.27674375]
[1768431631086,2.09540001,146.25,146.19,3.27674375]
[1768431632783,6.1534,146.26,146.2,3.23114704]
[1768431634184,2.72029796,146.27,146.2,3.23114704]
[1768431634379,2.72029796,146.27,146.22,0.04782103]
[1768431634581,6.153,146.27,146.22,3.27896807]
[1768431635778,8.87259796,146.29,146.23,84.03114704]
[1768431636685,8.87259796,146.29,146.23,3.23114704]
[1768431636884,8.87259796,146.29,146.24,80.8]
[1768431637079,8.87259796,146.29,146.25,0.05006377]
[1768431637686,0.62489795,146.29,146.25,0.05006377]
[1768431637879,2.72029796,146.29,146.25,0.05006377]
[1768431638080,0.62489795,146.31,146.25,3.28121081]
[1768431638280,2.72029796,146.3,146.25,0.05006377]
[1768431638878,8.87199796,146.3,146.25,0.05006377]
[1768431640290,0.62489795,146.29,146.25,0.05006377]
[1768431641890,0.62489795,146.29,146.25,80.85006377]
[1768431642884,0.62489795,146.29,146.25,0.05006377]
[1768431643086,0.62489795,146.29,146.25,80.85006377]
[1768431643387,8.87199796,146.3,146.25,80.85006377]
[1768431645087,6.77609795,146.32,146.25,84.08121081]
[1768431645285,2.09540001,146.3,146.27,0.04889532]
[1768431645488,0.62489795,146.32,146.27,0.04889532]
[1768431645686,2.72029796,146.32,146.27,0.04889532]
[1768431645888,0.62489795,146.32,146.27,3.28004236]
[1768431646091,2.09540001,146.33,146.27,3.28004236]
[1768431646289,0.62489795,146.36,146.27,3.28004236]
[1768431646590,0.62489795,146.39,146.31,3.23114704]
[1768431646793,2.72029796,146.39,146.34,0.04839949]
[1768431647794,0.62489795,146.41,146.34,3.27954653]
[1768431647991,2.72029796,146.41,146.36,0.05134133]
[1768431648888,0.62489795,146.4,146.36,80.83134133]
[1768431650192,0.62489795,146.4,146.23,95.7332]
[1768431650193,0.62489795,146.39,146.35,80.78]
[1768431650791,6.77299795,146.39,146.35,80.78]
[1768431651196,0.04745992,146.38,146.36,0.04686051]
[1768431657295,8.24210001,146.42,146.36,3.06456719]
[1768431657496,8.86396319,146.42,146.36,3.06456719]
[1768431659999,0.62186318,146.42,146.36,3.06456719]
[1768431662410,2.71726319,146.47,146.38,3.01770668]
[1768431662605,0.62186318,146.47,146.41,3.07016467]
[1768431662800,0.62186318,146.47,146.41,83.81016467]
[1768431663105,6.1443,146.48,146.41,83.81016467]
[1768431664106,6.1443,146.48,146.42,3.01770668]
[1768431664307,0.62186318,146.49,146.42,3.01770668]
[1768431664510,0.62186318,146.49,146.44,0.04490191]
[1768431665007,6.76566318,146.49,146.44,0.04490191]
[1768431665709,0.62186318,146.49,146.44,0.04490191]
[1768431665904,6.76506318,146.51,146.44,3.06260859]
[1768431666207,6.1434,146.5,146.44,3.06260859]
[1768431670314,6.1434,146.5,146.45,80.72]
[1768431671003,6.76566318,146.49,146.44,80.74490191]
[1768431671609,6.76566318,146.49,146.42,3.01770668]
[1768431671610,6.76616318,146.48,146.42,3.01770668]
[1768431671809,6.76616318,146.48,146.43,80.7]
[1768431672715,0.04760204,146.47,146.44,0.04321692]
[1768431675511,6.19220204,146.47,146.44,80.74321692]
[1768431680116,6.19220204,146.47,146.44,70.47411692]
[1768431680509,6.19220204,146.47,146.42,3.01770668]
[1768431680713,6.19220204,146.47,146.43,80.68]
[1768431681118,6.19220204,146.47,146.44,0.04731585]
[1768431682819,0.04760204,146.47,146.44,0.04731585]
[1768431683616,6.19220204,146.47,146.44,0.04731585]
[1768431683922,0.04760204,146.47,146.44,0.04731585]
[1768431685615,0.04760204,146.47,146.44,80.72731585]
[1768431685819,6.19220204,146.47,146.44,0.04731585]
[1768431686019,6.19220204,146.47,146.44,80.72731585]
[1768431686927,6.19220204,146.47,146.44,70.47861585]
[1768431687127,6.19220204,146.47,146.44,49.94821585]
[1768431688030,6.19220204,146.47,146.44,49.99649899]
[1768431689931,0.62305836,146.51,146.45,3.09228923]
[1768431691033,19.84323233,146.54,146.45,3.09228923]
[1768431691231,5.34872143,146.53,146.46,3.09228923]
[1768431691429,0.72110472,146.53,146.46,3.09228923]
[1768431691830,6.1431,146.51,146.46,3.09228923]
[1768431692031,0.04008844,146.5,146.47,0.04657492]
[1768431704440,22.04971356,146.54,146.47,3.13886415]
[1768431704645,5.36812333,146.53,146.47,3.13886415]
[1768431704846,22.04971356,146.54,146.47,3.13886415]
[1768431706139,22.77081828,146.54,146.47,3.13886415]
[1768431707841,116.0139,146.6,146.47,3.13886415]
[1768431707842,3.05545495,146.6,146.5,3.09228923]
[1768431708039,5.37203846,146.59,146.54,0.05067785]
[1768431708235,3.05545495,146.6,146.54,0.05067785]
[1768431709237,3.05545495,146.63,146.54,3.14296708]
[1768431709437,5.36447171,146.62,146.57,0.0430277]
[1768431709640,3.05545495,146.63,146.57,0.0430277]
[1768431709841,5.36473185,146.62,146.57,0.0430277]
[1768431710038,3.05545495,146.63,146.57,0.0430277]
[1768431710235,9.19335495,146.63,146.57,0.0430277]
[1768431710444,3.07660799,146.62,146.57,0.0430277]
[1768431715145,3.07660799,146.62,146.52,9.26007185]
[1768431715349,3.07660799,146.61,146.52,9.26007185]
[1768431716152,3.07660799,146.59,146.52,9.26007185]
[1768431716348,0.04302771,146.57,146.55,0.0434783]
[1768431721753,6.1392,146.6,146.55,0.0434783]
[1768431722751,9.21580799,146.6,146.55,0.0434783]
[1768431724563,3.07660799,146.6,146.55,0.0434783]
[1768431726757,9.21570799,146.6,146.55,0.0434783]
[1768431727762,3.07660799,146.58,146.5,83.73777185]
[1768431727951,3.07660799,146.62,146.51,3.11777185]
[1768431728359,3.07660799,146.62,146.53,9.25977185]
[1768431728759,0.0434783,146.59,146.56,0.05051286]
[1768431730461,3.07660799,146.61,146.56,0.05051286]
[1768431733063,6.1379,146.63,146.56,3.16828471]
[1768431733264,3.07660799,146.62,146.56,0.05051286]
[1768431733461,9.21490799,146.62,146.56,0.05051286]
[1768431734064,3.07660799,146.61,146.56,0.05051286]
[1768431742366,6.1379,146.63,146.56,9.39093076]
[1768431742568,5.31484421,146.64,146.57,3.1996179]
[1768431742767,3.22918083,146.63,146.59,0.05183771]
[1768431744874,9.36708083,146.63,146.59,0.05183771]
[1768431747675,3.22918083,146.65,146.59,3.25145561]
[1768431747873,3.22918083,146.68,146.61,3.24554625]
[1768431748074,3.22918083,146.7,146.63,3.24751865]
[1768431748483,3.22918083,146.72,146.65,3.1996179]
[1768431748666,3.22918083,146.72,146.67,0.0485359]
[1768431748869,3.22918083,146.75,146.67,3.2481538]
[1768431749167,80.6,146.81,146.68,3.1996179]
[1768431749367,9.36088083,146.78,146.73,0.04881171]
[1768431749765,3.22918083,146.77,146.73,0.04881171]
[1768431749965,3.22918083,146.75,146.66,3.1996179]
[1768431750166,3.22918083,146.72,146.63,3.1996179]
[1768431750378,2.08566338,146.69,146.6,3.1996179]
[1768431750575,3.22918083,146.68,146.6,3.1996179]
[1768431750970,0.04365737,146.65,146.63,0.05189347]
[1768431751766,3.22918083,146.64,146.57,3.1996179]
[1768431752275,9.36678083,146.64,146.57,3.1996179]
[1768431752765,0.04388979,146.62,146.59,0.0488075]
[1768431755668,0.04388979,146.62,146.57,3.1996179]
[1768431755873,3.27307062,146.62,146.54,11.42668128]
[1768431756776,3.27307062,146.62,146.57,0.04704098]
[1768431758379,3.22918083,146.6,146.52,3.1996179]
[1768431758578,2.08566338,146.59,146.52,3.1996179]
[1768431758780,3.22918083,146.59,146.52,3.1996179]
[1768431759282,0.04558278,146.57,146.54,0.04732449]
[1768431760376,3.27476361,146.57,146.54,0.04732449]
[1768431760571,3.27476361,146.57,146.5,3.1996179]
[1768431760775,5.36042699,146.57,146.5,3.1996179]
[1768431760979,6.1374,146.65,146.55,3.1996179]
[1768431761281,80.6,146.68,146.62,2.08566338]
[1768431761471,80.6,146.68,146.62,5.28528128]
[1768431761677,80.6,146.68,146.62,3.1996179]
[1768431761983,0.05184831,146.66,146.59,3.1996179]
[1768431762575,2.08566338,146.65,146.56,3.1996179]
[1768431763176,0.04850337,146.62,146.59,0.04585149]
[1768431763378,80.6,146.61,146.59,0.04585149]
[1768431763774,80.6,146.61,146.56,3.1996179]
[1768431764983,80.6,146.61,146.57,0.05252354]
[1768431765282,0.05036168,146.6,146.57,0.05252354]
[1768431767785,80.6,146.59,146.57,0.05252354]
[1768431768380,0.05036168,146.6,146.57,0.05252354]
[1768431768580,68.8705,146.59,146.57,3.25214144]
[1768431768782,22.17010572,146.58,146.57,3.1996179]
[1768431769085,80.6,146.59,146.57,3.1996179]
[1768431769277,80.6,146.59,146.53,2.08566338]
[1768431769481,83.82918083,146.58,146.55,0.04708296]
[1768431769786,80.6,146.57,146.49,2.08566338]
[1768431770785,0.0443227,146.54,146.52,0.05121542]
[1768431772788,80.6,146.56,146.53,1.36]
[1768431772984,6.1397,146.59,146.52,0.05121542]
[1768431773289,80.6,146.58,146.52,0.05121542]
[1768431773688,0.05120528,146.56,146.52,0.05121542]
[1768431773890,80.6,146.55,146.52,0.05121542]
[1768431774281,80.6,146.55,146.49,2.08566338]
[1768431774599,3.06604979,146.54,146.45,2.08566338]
[1768431775487,0.04613409,146.51,146.48,0.0455003]
[1768431775690,80.6,146.5,146.48,0.0455003]
[1768431775990,49.4239,146.5,146.48,0.0455003]
[1768431776297,52.48994979,146.5,146.42,6.1463]
[1768431776494,49.4239,146.5,146.41,2.08566338]
[1768431776699,80.62,146.51,146.43,97.69116338]
[1768431776994,80.62,146.52,146.45,2.08566338]
[1768431777191,0.04938021,146.5,146.47,6.19485919]
[1768431778199,0.04938021,146.5,146.47,0.05045919]
[1768431778894,0.04938021,146.5,146.39,2.08566338]
[1768431778895,5.15171317,146.49,146.39,2.08566338]
[1768431779201,3.06604979,146.48,146.38,2.08566338]
[1768431779389,85.77171317,146.47,146.39,6.1476]
[1768431779588,85.77171317,146.47,146.36,178.35476338]
[1768431779589,83.68604979,146.46,146.36,2.08566338]
[1768431779995,0.0504228,146.42,146.4,0.04497887]
[1768431780399,80.62,146.5,146.4,99.11574225]
[1768431780594,80.62,146.5,146.42,2.08566338]
[1768431780795,85.77171317,146.5,146.4,2.08566338]
[1768431781094,3.06604979,146.47,146.37,80.62]
[1768431781398,0.04698796,146.43,146.41,0.04745504]
[1768431782297,82.70566338,146.46,146.41,0.04745504]
[1768431782995,85.77171317,146.46,146.41,0.04745504]
[1768431783192,0.04359272,146.45,146.41,0.04745504]
[1768431784396,80.68359272,146.45,146.41,0.04745504]
[1768431785295,0.04359272,146.45,146.41,0.04745504]
[1768431785495,80.70359272,146.45,146.41,0.04745504]
[1768431785704,80.70359272,146.45,146.36,8.23456338]
[1768431785896,3.06604979,146.46,146.36,8.23456338]
[1768431786097,80.66,146.45,146.36,8.23456338]
[1768431786298,80.66,146.45,146.37,6.1486]
[1768431786598,5.15171317,146.52,146.42,2.08566338]
[1768431786803,5.15171317,146.52,146.4,80.66]
[1768431787008,0.04624484,146.48,146.41,2.08566338]
[1768431787496,3.06604979,146.47,146.37,2.08566338]
[1768431788102,0.04316048,146.43,146.41,0.04342276]
[1768431790402,9.21094979,146.47,146.41,0.04342276]
[1768431791600,0.04484135,146.45,146.41,0.04342276]
[1768431792402,3.06604979,146.53,146.42,96.9715]
[1768431792704,3.06604979,146.53,146.42,176.2715]
[1768431793507,0.04981049,146.49,146.46,0.04739981]
[1768431793899,0.04981049,146.49,146.38,181.62990277]
[1768431794099,3.06604979,146.5,146.38,181.62990277]
[1768431794405,3.06604979,146.53,146.43,95.6047]
[1768431794706,3.06604979,146.53,146.43,176.2647]
[1768431794900,0.04785466,146.49,146.47,0.04584559]
[1768431795099,0.04785466,146.49,146.43,80.66]
[1768431795895,0.04785466,146.49,146.4,80.66]
[1768431796202,0.04978264,146.46,146.43,0.04513924]
[1768431799406,3.06604979,146.49,146.43,0.04513924]
[1768431800511,0.05207354,146.47,146.43,0.04513924]
[1768431800804,3.09742326,146.52,146.43,0.04513924]
[1768431801004,3.09742326,146.51,146.4,80.66]
[1768431801701,0.04907604,146.47,146.44,0.04798902]
[1768431801907,0.04640523,146.47,146.44,0.04858487]
[1768431802112,3.22591764,146.52,146.44,0.04858487]
[1768431802409,3.22591764,146.51,146.44,6.1456]
[1768431803110,0.04961293,146.49,146.46,0.04448217]
[1768431804008,9.36771764,146.54,146.46,0.04448217]
[1768431804910,0.04803213,146.51,146.46,6.18938217]
[1768431805712,3.22591764,146.54,146.46,0.04448217]
[1768431806812,0.04626474,146.51,146.48,6.144]
[1768431807015,0.04626474,146.51,146.48,6.18827614]
[1768431807516,0.04626474,146.51,146.48,0.04427614]
[1768431812611,3.27218238,146.51,146.41,95.6163]
[1768431812823,3.22591764,146.51,146.42,80.66]
[1768431813217,3.22591764,146.54,146.42,176.2721]
[1768431813620,0.04714924,146.49,146.47,0.04851436]
[1768431813821,0.04417954,146.49,146.47,0.04851436]
[1768431818420,0.04417954,146.49,146.44,6.1455]
[1768431818924,0.04417954,146.49,146.42,80.66]
[1768431819524,0.04417954,146.49,146.45,6.1453]
[1768431820924,0.04417954,146.49,146.46,86.7848]
[1768431821120,3.22591764,146.53,146.46,80.64]
[1768431821327,3.22591764,146.59,146.46,80.64]
[1768431821625,3.22591764,146.56,146.49,6.1436]
[1768431822224,0.04817996,146.54,146.51,0.05070706]
[1768431824635,3.2740976,146.54,146.5,77.32615503]
[1768431825027,3.2740976,146.54,146.43,95.6054]
[1768431825328,3.22591764,146.54,146.44,80.64]
[1768431825528,0.0511943,146.5,146.48,0.04694783]
[1768431826526,0.0511943,146.5,146.48,80.68694783]
[1768431828740,3.22591764,146.54,146.48,80.68694783]
[1768431829036,3.22591764,146.56,146.48,80.68694783]
[1768431829230,3.22591764,146.56,146.48,80.64]
[1768431829427,3.22591764,146.54,146.48,80.64]
[1768431829927,0.04630639,146.52,146.48,80.64]
[1768431830836,0.04630639,146.52,146.49,0.04508754]
[1768431831934,0.04630639,146.52,146.49,6.18878754]
[1768431832527,0.04630639,146.52,146.5,6.1433]
[1768431833139,0.04630639,146.52,146.49,0.04508754]
[1768431835635,0.04630639,146.52,146.5,6.1433]
[1768431836940,3.31289764,146.58,146.51,80.64]
[1768431837841,0.04367679,146.56,146.53,0.04459254]
[1768431838429,3.35657443,146.56,146.51,80.64]
[1768431839536,3.35657443,146.56,146.52,0.0520703]
[1768431840338,3.35657443,146.56,146.51,70.6998339]
[1768431841136,3.35657443,146.56,146.48,86.7837]
[1768431841340,3.35657443,146.56,146.51,0.04316683]
[1768431841535,3.31289764,146.53,146.48,80.64]
[1768431841946,3.31289764,146.55,146.48,80.64]
[1768431842349,3.31289764,146.53,146.48,80.64]
[1768431842647,3.36372833,146.52,146.48,80.64]
[1768431842947,3.36372833,146.52,146.45,80.64]
[1768431843648,3.36372833,146.52,146.47,0.05163983]
[1768431843943,9.50632833,146.52,146.47,0.05163983]
[1768431844539,3.31289764,146.5,146.45,80.64]
[1768431844746,3.31289764,146.5,146.41,80.64]
[1768431845341,9.45729764,146.48,146.41,86.7868]
[1768431845734,0.05202281,146.46,146.43,0.04979856]
[1768431849142,0.05202281,146.46,146.43,3.26242315]
[1768431849744,3.31289764,146.51,146.44,3.21262459]
[1768431849939,3.31289764,146.51,146.45,80.66]
[1768431850839,0.04551088,146.49,146.47,0.04340101]
[1768431851952,9.45469764,146.54,146.47,0.04340101]
[1768431852249,9.45469764,146.54,146.46,9.35752459]
[1768431853051,0.045824,146.51,146.49,0.04986845]
[1768431855744,6.1413,146.55,146.49,0.04986845]
[1768431856046,3.31289764,146.57,146.48,3.21262459]
[1768431856843,0.05187954,146.54,146.51,0.04745942]
[1768431860557,3.2262966,146.54,146.48,6.1438]
[1768431861649,3.2262966,146.54,146.5,0.04764014]
[1768431862146,0.05187954,146.54,146.5,0.04764014]
[1768431863753,0.05187954,146.54,146.5,6.19084014]
[1768431866257,0.00111038,146.54,146.5,6.19084014]
[1768431867947,0.00111038,146.54,146.5,86.83084014]
[1768431869358,0.00111038,146.54,146.5,89.96912934]
[1768431869759,0.00111038,146.54,146.51,6.1428]
[1768431872663,0.00111038,146.54,146.5,83.82592934]
[1768431873863,0.00111038,146.54,146.5,89.96922934]
[1768431874265,3.04000088,146.54,146.5,80.68764014]
[1768431876857,3.0388905,146.53,146.5,63.80217638]
[1768431877064,0.00111038,146.54,146.46,3.1382892]
[1768431877261,2.08735327,146.55,146.46,3.1382892]
[1768431878067,0.04845823,146.52,146.49,0.05115316]
[1768431884378,0.04845823,146.52,146.49,3.18944236]
[1768431884578,0.04845823,146.52,146.49,5.27679563]
[1768431885774,6.141,146.56,146.49,5.27679563]
[1768431886777,0.04350028,146.54,146.49,5.27679563]
[1768431888083,0.04350028,146.54,146.5,3.1382892]
[1768431888585,0.04350028,146.54,146.5,9.2813892]
[1768431888982,0.04350028,146.54,146.5,3.1382892]
[1768431889286,0.04350028,146.54,146.5,85.86564247]
[1768431889785,0.04350028,146.54,146.51,6.1428]
[1768431890479,0.04350028,146.54,146.5,83.7782892]
[1768431891186,0.04350028,146.54,146.5,85.86564247]
[1768431891785,0.04350028,146.54,146.51,6.1428]
[1768431892485,0.04350028,146.54,146.52,6.1424]
[1768431894882,0.04350028,146.54,146.5,89.9211892]
[1768431895788,0.04350028,146.54,146.5,80.64]
[1768431896797,0.04350028,146.54,146.5,83.68392866]
[1768431897890,0.04350028,146.54,146.5,89.82722866]
[1768431901296,2.08735327,146.59,146.5,89.82722866]
[1768431901297,8.22725327,146.59,146.52,9.18632866]
[1768431901493,2.08735327,146.63,146.53,3.04392866]
[1768431901700,5.39691499,146.62,146.55,3.04392866]
[1768431901901,2.08735327,146.63,146.55,3.04392866]
[1768431902099,5.3973285,146.62,146.55,3.04392866]
[1768431902301,6.1391,146.6,146.55,3.04392866]
[1768431902604,6.18541594,146.6,146.57,0.04318324]
[1768431903295,0.04631594,146.6,146.57,0.04318324]
[1768431903698,95.4519,146.68,146.57,3.0871119]
[1768431903899,97.55635327,146.65,146.55,5.13128193]
[1768431904103,2.08735327,146.63,146.55,3.04392866]
[1768431904602,0.04759484,146.6,146.58,0.05043332]
[1768431909100,0.04759484,146.6,146.54,88.86895327]
[1768431909101,7.54679484,146.6,146.54,80.64]
[1768431909303,2.08735327,146.59,146.52,3.04392866]
[1768431910104,0.04773402,146.57,146.54,0.04819944]
[1768431910703,2.13508729,146.57,146.54,0.04819944]
[1768431910905,2.13508729,146.57,146.51,80.62]
[1768431911705,6.18833402,146.57,146.52,3.04392866]
[1768431911907,6.18833402,146.57,146.53,0.04458308]
[1768431915108,0.04773402,146.57,146.53,0.04458308]
[1768431915313,95.4815,146.63,146.53,3.08851174]
[1768431915506,95.469,146.65,146.53,3.04392866]
[1768431915507,7.49610864,146.62,146.53,3.04392866]
[1768431915706,2.08735327,146.62,146.53,3.04392866]
[1768431916309,0.04612232,146.59,146.56,0.04515415]
[1768431919615,6.1386,146.62,146.56,0.04515415]
[1768431919816,2.08735327,146.63,146.56,0.04515415]
[1768431920111,6.1392,146.6,146.56,0.04515415]
[1768431920415,2.08735327,146.61,146.52,9.17138288]
[1768431920616,0.04669912,146.58,146.55,0.05219716]
[1768431921306,6.1405,146.57,146.52,3.02928288]
[1768431922317,6.1405,146.57,146.53,0.05082212]
[1768431933934,0.04669912,146.58,146.53,3.25224418]
[1768431934121,98.72958077,146.65,146.53,3.25224418]
[1768431934423,98.72958077,146.65,146.53,3.20142206]
[1768431934424,5.41485964,146.64,146.53,3.20142206]
[1768431934624,5.41485964,146.63,146.53,3.20142206]
[1768431934821,5.41485964,146.62,146.53,3.20142206]
[1768431935020,98.72958077,146.65,146.53,3.20142206]
[1768431935220,0.04432415,146.59,146.56,0.04663336]
[1768431935426,0.04379632,146.59,146.56,0.04570385]
[1768431935833,98.71598077,146.67,146.56,9.38782591]
[1768431936025,5.41251072,146.66,146.57,3.20142206]
[1768431936221,5.41251072,146.65,146.57,3.20142206]
[1768431936528,5.41251072,146.64,146.57,3.20142206]
[1768431936729,5.41251072,146.63,146.57,3.20142206]
[1768431936925,179.33598077,146.67,146.58,3.20142206]
[1768431936926,3.26058077,146.67,146.58,3.20142206]
[1768431937122,0.05211016,146.64,146.61,0.05115634]
[1768431937519,6.18961016,146.64,146.61,0.05115634]
[1768431937731,6.18961016,146.64,146.58,3.20142206]
[1768431938530,3.26058077,146.67,146.58,3.20142206]
[1768431938736,5.409278,146.66,146.59,3.20142206]
[1768431938936,80.62,146.69,146.59,3.20142206]
[1768431939232,83.88058077,146.7,146.59,3.20142206]
[1768431939434,0.04375674,146.66,146.63,0.05110845]
[1768431941541,3.26058077,146.72,146.63,3.25253051]
[1768431941735,5.4044754,146.71,146.6,3.20142206]
[1768431941934,3.26058077,146.72,146.6,3.20142206]
[1768431942136,5.40442943,146.71,146.6,3.20142206]
[1768431942339,3.26058077,146.72,146.6,3.20142206]
[1768431942641,0.04832564,146.67,146.65,0.04783042]
[1768431942938,0.04482801,146.67,146.65,0.04783042]
[1768431944638,6.1347,146.71,146.65,0.04783042]
[1768431944842,95.4134,146.73,146.63,3.20142206]
[1768431945745,95.4134,146.73,146.67,0.05216124]
[1768431946148,6.135,146.7,146.63,9.33922206]
[1768431946454,6.135,146.7,146.64,3.20142206]
[1768431946849,6.1344,146.72,146.65,3.20142206]
[1768431947154,98.66808077,146.74,146.65,3.20142206]
[1768431947343,98.66808077,146.74,146.67,0.05159512]
[1768431947545,6.135,146.7,146.65,3.20142206]
[1768431948640,6.135,146.7,146.66,0.05187922]
[1768431951457,0.04458315,146.71,146.63,9.39035712]
[1768431951658,3.26058077,146.72,146.64,3.25255712]
[1768431951855,6.1348,146.71,146.64,3.25255712]
[1768431952052,1.18682218,146.73,146.64,3.25255712]
[1768431952351,3.26058077,146.72,146.62,9.39045712]
[1768431952550,0.04471604,146.68,146.62,9.39045712]
[1768431953555,0.04471604,146.68,146.64,0.05231794]
[1768431956059,0.04471604,146.68,146.64,3.30487506]
[1768431956760,6.1351,146.7,146.64,3.30487506]
[1768431957057,6.1351,146.7,146.64,3.25255712]
[1768431957759,0.04718104,146.68,146.66,0.0491052]
[1768431960558,0.04718104,146.68,146.61,9.39085712]
[1768431961053,0.04718104,146.68,146.62,3.25255712]
[1768431961263,1.18682218,146.73,146.62,3.25255712]
[1768431962265,0.04675352,146.69,146.66,0.04480662]
[1768431963659,7.32072218,146.73,146.66,3.29736374]
[1768431963958,6.1339,146.73,146.66,3.29736374]
[1768431964554,6.1341,146.72,146.66,3.29736374]
[1768431964750,0.04469179,146.7,146.68,0.04774576]
[1768431965658,4.44720061,146.76,146.68,0.04774576]
[1768431965857,6.1332,146.75,146.69,3.25255712]
[1768431966552,6.1332,146.75,146.71,0.04699134]
[1768431966856,1.18643779,146.78,146.71,0.04699134]
[1768431967052,1.18643779,146.78,146.71,3.29954846]
[1768431967760,6.1325,146.76,146.71,3.29954846]
[1768431967948,1.18643779,146.78,146.71,3.29954846]
[1768431968147,95.3739,146.8,146.71,3.29954846]
[1768431968348,96.56011536,146.8,146.74,0.04805864]
[1768431968847,0.04860429,146.78,146.74,0.04805864]
[1768431969757,6.1321,146.77,146.74,0.04805864]
[1768431970463,6.1321,146.77,146.71,3.25255712]
[1768431970664,0.04860429,146.78,146.69,3.25255712]
[1768431970858,0.04860429,146.78,146.67,6.1359]
[1768431970859,3.26058077,146.77,146.67,3.25255712]
[1768431971159,6.1338,146.73,146.67,3.25255712]
[1768431971661,0.05075649,146.71,146.69,0.04628689]
[1768431972855,0.05075649,146.71,146.64,80.56]
[1768431972856,0.05075649,146.71,146.64,3.25255712]
[1768431973661,0.05075649,146.71,146.64,9.38995712]
[1768431973858,0.05075649,146.71,146.66,0.04830894]
[1768431974162,0.05075649,146.71,146.66,3.30086606]
[1768431974764,6.18525649,146.71,146.66,3.30086606]
[1768431974960,6.18525649,146.71,146.66,0.04830894]
[1768431975956,6.1351,146.7,146.66,0.04830894]
[1768431976665,3.31133726,146.71,146.63,3.25255712]
[1768431976861,3.26058077,146.71,146.63,3.25255712]
[1768431977566,0.04949231,146.68,146.66,0.04716407]
[1768431977868,6.18529231,146.68,146.63,3.25255712]
[1768431978864,6.18529231,146.68,146.64,0.04380412]
[1768431979564,6.1364,146.67,146.64,0.04380412]
[1768431982568,6.1367,146.66,146.6,3.25255712]
[1768431983267,8.2212812,146.66,146.6,3.25255712]
[1768431983569,0.04577294,146.64,146.62,0.04421136]
[1768431983968,2.13035414,146.64,146.57,3.02744699]
[1768431984166,2.0845812,146.64,146.57,3.02744699]
[1768431984769,8.2222812,146.64,146.57,3.02744699]
[1768431984967,0.04568581,146.62,146.59,0.0489245]
[1768431989779,0.04568581,146.62,146.55,80.56]
[1768431989780,2.13026701,146.62,146.55,80.56]
[1768431990073,0.04568581,146.62,146.56,3.02744699]
[1768431990967,0.04568581,146.62,146.58,0.04886229]
[1768431991174,2.0845812,146.66,146.58,3.07630928]
[1768431991375,95.433,146.7,146.58,3.07630928]
[1768431991566,95.433,146.7,146.59,3.02744699]
[1768431991567,2.0845812,146.68,146.59,3.02744699]
[1768431992268,2.0845812,146.7,146.62,3.08000843]
[1768431992468,95.4262,146.72,146.63,3.02744699]
[1768431992469,2.0845812,146.72,146.63,3.02744699]
[1768431993074,2.0845812,146.72,146.64,3.02744699]
[1768431993275,0.04384744,146.69,146.67,0.0443363]
[1768431993572,0.04384744,146.69,146.64,3.02744699]
[1768431993974,6.17934744,146.69,146.64,3.02744699]
[1768431994472,6.17934744,146.69,146.65,0.04465438]
[1768431997376,6.134,146.73,146.65,3.07210137]
[1768431997571,2.0845812,146.77,146.68,3.02744699]
[1768431997973,6.1322,146.77,146.7,3.02744699]
[1768431998576,6.1315,146.79,146.72,3.07108866]
[1768431999074,8.2150812,146.81,146.72,3.07108866]